[Event "Championnat d'Europe Rapide"]
[Date "2024.12.08"]
[White "Stefanova, Antoaneta"]
[Black "Wyss, Jonas"]
[WhiteElo "2418"]
[BlackElo "2270"]
[Round "9.44"]
[Result "1-0"]
[TimeControl "900+10"]

1. d4 {[%clk 00:15:19]} Nf6 {[%emt 00:00:05] [%clk 00:15:17]} 2. Nf3 {[%clk
00:15:28]} g6 {[%emt 00:00:01] [%clk 00:15:25]} 3. g3 {[%emt 00:00:02] [%clk
00:15:35]} Bg7 {[%emt 00:00:03] [%clk 00:15:33]} 4. Bg2 {[%clk 00:15:44]} d5
{[%emt 00:00:09] [%clk 00:15:34]} 5. O-O {[%emt 00:00:03] [%clk 00:15:52]} O-O
{[%emt 00:00:04] [%clk 00:15:39]} 6. Be3 {[%emt 00:00:02] [%clk 00:16:01]} c6
{[%emt 00:00:55] [%clk 00:14:54]} 7. Qc1 {[%emt 00:00:09] [%clk 00:16:02]} Re8
{[%emt 00:00:04] [%clk 00:14:59]} 8. Rd1 {[%emt 00:00:54] [%clk 00:15:17]} Bf5
{[%emt 00:00:34] [%clk 00:14:36]} 9. h3 {[%emt 00:00:40] [%clk 00:14:47]} Nbd7
{[%emt 00:00:41] [%clk 00:14:05]} 10. Nh4 {[%emt 00:00:33] [%clk 00:14:24]} Be6
{[%emt 00:00:10] [%clk 00:14:05]} 11. Nd2 {[%emt 00:01:59] [%clk 00:12:34]} Rc8
{[%emt 00:00:43] [%clk 00:13:32]} 12. f4 {[%emt 00:02:19] [%clk 00:10:26]} c5
{[%emt 00:01:19] [%clk 00:12:24]} 13. Nhf3 {[%emt 00:00:46] [%clk 00:09:48]} Qb6
{[%emt 00:02:20] [%clk 00:10:15]} 14. c3 {[%emt 00:01:30] [%clk 00:08:28]} Ne4
{[%emt 00:02:44] [%clk 00:07:41]} 15. Nxe4 {[%emt 00:04:01] [%clk 00:04:37]}
dxe4 {[%emt 00:00:02] [%clk 00:07:49]} 16. d5 {[%emt 00:01:11] [%clk 00:03:36]}
Bxd5 {[%emt 00:02:38] [%clk 00:05:21]} 17. Rxd5 {[%emt 00:00:05] [%clk
00:03:42]} exf3 {[%emt 00:00:01] [%clk 00:05:29]} 18. Bxf3 {[%emt 00:00:23]
[%clk 00:03:30]} Nf6 {[%emt 00:00:35] [%clk 00:05:02]} 19. Rd1 {[%emt 00:02:42]
[%clk 00:00:59]} e5 {[%emt 00:00:48] [%clk 00:04:24]} 20. fxe5 {[%emt 00:00:40]
[%clk 00:00:29]} Rxe5 {[%emt 00:00:02] [%clk 00:04:32]} 21. Bf4 {[%emt 00:00:13]
[%clk 00:00:27]} Re7 {[%emt 00:02:20] [%clk 00:02:21]} 22. Rd6 {[%emt 00:00:10]
[%clk 00:00:27]} Qb5 {[%emt 00:00:29] [%clk 00:02:02]} 23. Qc2 {[%emt 00:00:18]
[%clk 00:00:20]} c4 {[%emt 00:00:21] [%clk 00:01:51]} 24. Rad1 {[%emt 00:00:05]
[%clk 00:00:25]} Nh5 {[%emt 00:00:26] [%clk 00:01:35]} 25. R1d5 {[%emt 00:00:09]
[%clk 00:00:25]} Qe8 {[%emt 00:01:08] [%clk 00:00:37]} 26. Qd1 {[%emt 00:00:12]
[%clk 00:00:24]} Bf8 {[%emt 00:00:31] [%clk 00:00:16]} 27. Bxh5 {[%emt 00:00:11]
[%clk 00:00:22]} gxh5 {[%emt 00:00:05] [%clk 00:00:22]} 28. Rg5+ {[%emt
00:00:12] [%clk 00:00:20]} Bg7 {[%emt 00:00:11] [%clk 00:00:21]} 29. Qd4 {[%emt
00:00:04] [%clk 00:00:26]} Qf8 {[%emt 00:00:12] [%clk 00:00:18]} 30. Be5 {[%emt
00:00:13] [%clk 00:00:22]} Rxe5 {[%emt 00:00:03] [%clk 00:00:26]} 31. Qxe5
{[%emt 00:00:02] [%clk 00:00:30]} Re8 {[%emt 00:00:22] [%clk 00:00:15]} 32.
Rxg7+ {[%emt 00:00:02] [%clk 00:00:38]} 1-0

[Site "Europe Echecs"]

[Event "Championnat d'Europe Rapide"]
[Date "2024.12.08"]
[White "Rodriguez Fontecha, Marcos"]
[Black "Pancevski, Filip"]
[WhiteElo "2278"]
[BlackElo "2420"]
[Round "9.45"]
[Result "0-1"]
[TimeControl "900+10"]

1. d4 {[%emt 00:00:06] [%clk 00:15:15]} Nf6 {[%clk 00:15:19]} 2. Nf3 {[%emt
00:00:01] [%clk 00:15:23]} g6 {[%emt 00:00:02] [%clk 00:15:28]} 3. Bf4 {[%emt
00:00:10] [%clk 00:15:24]} d6 {[%emt 00:00:01] [%clk 00:15:37]} 4. Nc3 {[%emt
00:00:03] [%clk 00:15:31]} c6 {[%emt 00:00:05] [%clk 00:15:42]} 5. Qd2 {[%emt
00:00:04] [%clk 00:15:36]} Nbd7 {[%emt 00:00:11] [%clk 00:15:41]} 6. e4 {[%emt
00:00:25] [%clk 00:15:21]} b5 {[%emt 00:00:21] [%clk 00:15:31]} 7. a3 {[%emt
00:00:34] [%clk 00:14:57]} Nb6 {[%emt 00:00:03] [%clk 00:15:38]} 8. b3 {[%emt
00:01:20] [%clk 00:13:46]} Bg7 {[%emt 00:00:28] [%clk 00:15:21]} 9. Bh6 {[%emt
00:01:01] [%clk 00:12:54]} O-O {[%emt 00:00:31] [%clk 00:15:00]} 10. Bxg7 {[%emt
00:01:48] [%clk 00:11:16]} Kxg7 {[%emt 00:00:02] [%clk 00:15:09]} 11. g3 {[%emt
00:00:03] [%clk 00:11:22]} a5 {[%emt 00:00:30] [%clk 00:14:50]} 12. Qe3 {[%emt
00:01:00] [%clk 00:10:31]} Bb7 {[%emt 00:02:47] [%clk 00:12:14]} 13. Bg2 {[%emt
00:00:17] [%clk 00:10:23]} b4 {[%emt 00:00:06] [%clk 00:12:18]} 14. Ne2 {[%emt
00:01:32] [%clk 00:09:01]} Qc7 {[%emt 00:02:21] [%clk 00:10:07]} 15. O-O {[%emt
00:00:08] [%clk 00:09:03]} c5 {[%emt 00:00:13] [%clk 00:10:04]} 16. e5 {[%emt
00:02:17] [%clk 00:06:56]} Nfd5 {[%emt 00:00:29] [%clk 00:09:46]} 17. Qd2 {[%emt
00:00:49] [%clk 00:06:17]} c4 {[%emt 00:00:22] [%clk 00:09:35]} 18. axb4 {[%emt
00:01:16] [%clk 00:05:11]} axb4 {[%emt 00:00:09] [%clk 00:09:35]} 19. Nf4 {[%emt
00:00:19] [%clk 00:05:02]} cxb3 {[%emt 00:04:41] [%clk 00:05:04]} 20. cxb3
{[%emt 00:00:11] [%clk 00:05:01]} Qc3 {[%emt 00:00:10] [%clk 00:05:04]} 21. Rac1
{[%emt 00:01:41] [%clk 00:03:30]} Qxd2 {[%emt 00:00:19] [%clk 00:04:55]} 22.
Nxd2 {[%emt 00:00:01] [%clk 00:03:38]} Nxf4 {[%emt 00:00:19] [%clk 00:04:47]}
23. gxf4 {[%emt 00:00:22] [%clk 00:03:26]} Bxg2 {[%emt 00:00:11] [%clk
00:04:46]} 24. Kxg2 {[%emt 00:00:01] [%clk 00:03:34]} Nd5 {[%emt 00:00:04] [%clk
00:04:52]} 25. Kf3 {[%emt 00:00:43] [%clk 00:03:01]} Nc3 {[%emt 00:00:28] [%clk
00:04:34]} 26. Ne4 {[%emt 00:01:05] [%clk 00:02:07]} Nb5 {[%emt 00:00:09] [%clk
00:04:35]} 27. d5 {[%emt 00:01:26] [%clk 00:00:50]} Ra3 {[%emt 00:00:46] [%clk
00:04:00]} 28. Nd2 {[%emt 00:00:12] [%clk 00:00:48]} Rd8 {[%emt 00:00:43] [%clk
00:03:27]} 29. Rc4 {[%emt 00:00:20] [%clk 00:00:39]} dxe5 {[%emt 00:00:22] [%clk
00:03:14]} 30. Rxb4 {[%emt 00:00:05] [%clk 00:00:43]} Rxd5 {[%emt 00:01:44]
[%clk 00:01:40]} 31. fxe5 {[%emt 00:00:34] [%clk 00:00:19]} Rxe5 {[%emt
00:00:24] [%clk 00:01:26]} 32. Nc4 {[%emt 00:00:10] [%clk 00:00:20]} Rf5+ {[%emt
00:00:01] [%clk 00:01:35]} 33. Kg2 {[%emt 00:00:06] [%clk 00:00:24]} Ra2 {[%emt
00:00:11] [%clk 00:01:34]} 34. Ne3 {[%emt 00:00:15] [%clk 00:00:18]} Rg5+ {[%emt
00:00:09] [%clk 00:01:36]} 35. Kf3 {[%emt 00:00:09] [%clk 00:00:19]} Rb2 {[%emt
00:00:21] [%clk 00:01:26]} 36. Rd1 {[%emt 00:00:01] [%clk 00:00:27]} e5 {[%emt
00:00:50] [%clk 00:00:46]} 37. h4 {[%emt 00:00:15] [%clk 00:00:22]} Rh5 {[%emt
00:00:02] [%clk 00:00:55]} 38. Rd5 {[%emt 00:00:14] [%clk 00:00:17]} Nd4+ {[%emt
00:00:21] [%clk 00:00:44]} 39. Kg3 {[%emt 00:00:12] [%clk 00:00:15]} Ne2+ {[%emt
00:00:33] [%clk 00:00:21]} 40. Kf3 {[%emt 00:00:03] [%clk 00:00:21]} Nd4+ {[%emt
00:00:06] [%clk 00:00:26]} 41. Kg3 {[%clk 00:00:30]} Nf5+ {[%emt 00:00:03] [%clk
00:00:33]} 42. Nxf5+ {[%emt 00:00:05] [%clk 00:00:34]} Rxf5 {[%clk 00:00:43]}
43. f3 {[%emt 00:00:02] [%clk 00:00:43]} Rb1 {[%emt 00:00:09] [%clk 00:00:44]}
44. Rbb5 {[%emt 00:00:10] [%clk 00:00:42]} Re1 {[%emt 00:00:16] [%clk 00:00:37]}
45. Kf2 {[%emt 00:00:05] [%clk 00:00:48]} Re4 {[%emt 00:00:10] [%clk 00:00:38]}
46. h5 {[%emt 00:00:36] [%clk 00:00:21]} Ref4 {[%emt 00:00:01] [%clk 00:00:47]}
47. Rd3 {[%emt 00:00:12] [%clk 00:00:19]} Rxh5 {[%emt 00:00:08] [%clk 00:00:48]}
48. Re3 {[%emt 00:00:06] [%clk 00:00:23]} Rhf5 {[%emt 00:00:17] [%clk 00:00:42]}
49. Kg2 {[%emt 00:00:15] [%clk 00:00:17]} h5 {[%emt 00:00:14] [%clk 00:00:39]}
50. b4 {[%emt 00:00:09] [%clk 00:00:18]} Rc4 {[%emt 00:00:26] [%clk 00:00:23]}
51. Rb7 {[%emt 00:00:16] [%clk 00:00:12]} Rc2+ {[%emt 00:00:01] [%clk 00:00:31]}
52. Kg3 {[%emt 00:00:02] [%clk 00:00:20]} Rb2 {[%emt 00:00:01] [%clk 00:00:40]}
53. b5 {[%emt 00:00:07] [%clk 00:00:24]} Rb4 {[%clk 00:00:49]} 54. b6 {[%emt
00:00:08] [%clk 00:00:26]} Rf6 {[%emt 00:00:05] [%clk 00:00:53]} 55. Rxe5 {[%emt
00:00:03] [%clk 00:00:34]} Rbxb6 {[%emt 00:00:09] [%clk 00:00:53]} 56. Rxb6
{[%emt 00:00:23] [%clk 00:00:22]} Rxb6 {[%emt 00:00:01] [%clk 00:01:02]} 57. f4
{[%emt 00:00:01] [%clk 00:00:31]} Rb3+ {[%emt 00:00:05] [%clk 00:01:07]} 58. Kg2
{[%emt 00:00:11] [%clk 00:00:29]} Kf6 {[%emt 00:00:02] [%clk 00:01:16]} 59. Ra5
{[%emt 00:00:06] [%clk 00:00:33]} Rd3 {[%emt 00:00:02] [%clk 00:01:24]} 60. Rb5
{[%emt 00:00:05] [%clk 00:00:37]} Ke6 {[%emt 00:00:13] [%clk 00:01:22]} 61. Re5+
{[%emt 00:00:09] [%clk 00:00:38]} Kd6 {[%emt 00:00:25] [%clk 00:01:07]} 62. Ra5
{[%emt 00:00:21] [%clk 00:00:26]} Ke6 {[%emt 00:00:32] [%clk 00:00:46]} 63. Re5+
{[%emt 00:00:02] [%clk 00:00:34]} Kf6 {[%clk 00:00:55]} 64. Ra5 {[%emt 00:00:03]
[%clk 00:00:41]} Kg7 {[%emt 00:00:15] [%clk 00:00:50]} 65. Ra7 {[%emt 00:00:23]
[%clk 00:00:29]} Rb3 {[%emt 00:00:16] [%clk 00:00:43]} 66. Rc7 {[%emt 00:00:03]
[%clk 00:00:37]} Kf6 {[%emt 00:00:11] [%clk 00:00:42]} 67. Rc5 {[%emt 00:00:01]
[%clk 00:00:46]} h4 {[%emt 00:00:16] [%clk 00:00:36]} 68. Ra5 {[%emt 00:00:36]
[%clk 00:00:19]} h3+ {[%emt 00:00:09] [%clk 00:00:37]} 69. Kh2 {[%emt 00:00:08]
[%clk 00:00:21]} Rf3 {[%emt 00:00:02] [%clk 00:00:46]} 70. Ra6+ {[%emt 00:00:12]
[%clk 00:00:20]} Kf5 {[%emt 00:00:05] [%clk 00:00:50]} 71. Ra7 {[%emt 00:00:06]
[%clk 00:00:24]} f6 {[%emt 00:00:15] [%clk 00:00:44]} 72. Rg7 {[%emt 00:00:15]
[%clk 00:00:19]} Rxf4 {[%emt 00:00:09] [%clk 00:00:46]} 73. Kxh3 {[%emt
00:00:01] [%clk 00:00:27]} Rf3+ {[%emt 00:00:03] [%clk 00:00:53]} 74. Kg2 {[%emt
00:00:03] [%clk 00:00:34]} Ra3 {[%emt 00:00:02] [%clk 00:01:01]} 0-1

[Site "Europe Echecs"]

[Event "Championnat d'Europe Rapide"]
[Date "2024.12.08"]
[White "Avramidou, Anastasia"]
[Black "Narva, Mai"]
[WhiteElo "2298"]
[BlackElo "2413"]
[Round "9.46"]
[Result "1/2-1/2"]
[TimeControl "900+10"]

1. d4 {[%emt 00:00:02] [%clk 00:15:17]} Nf6 {[%emt 00:00:04] [%clk 00:15:18]} 2.
c4 {[%clk 00:15:25]} g6 {[%emt 00:00:03] [%clk 00:15:25]} 3. h4 {[%emt 00:00:10]
[%clk 00:15:25]} c5 {[%emt 00:00:21] [%clk 00:15:13]} 4. d5 {[%emt 00:00:03]
[%clk 00:15:33]} d6 {[%emt 00:00:39] [%clk 00:14:44]} 5. Nc3 {[%emt 00:00:06]
[%clk 00:15:37]} Bg7 {[%emt 00:00:11] [%clk 00:14:43]} 6. e4 {[%emt 00:00:09]
[%clk 00:15:38]} b5 {[%emt 00:01:08] [%clk 00:13:45]} 7. cxb5 {[%emt 00:00:08]
[%clk 00:15:40]} a6 {[%emt 00:00:06] [%clk 00:13:48]} 8. Nf3 {[%emt 00:00:29]
[%clk 00:15:22]} O-O {[%emt 00:01:23] [%clk 00:12:34]} 9. a4 {[%emt 00:01:59]
[%clk 00:13:34]} axb5 {[%emt 00:02:17] [%clk 00:10:28]} 10. Bxb5 {[%emt
00:00:11] [%clk 00:13:31]} Na6 {[%emt 00:00:39] [%clk 00:09:59]} 11. O-O {[%emt
00:02:37] [%clk 00:11:05]} Nb4 {[%emt 00:00:42] [%clk 00:09:27]} 12. Nd2 {[%emt
00:02:23] [%clk 00:08:52]} e6 {[%emt 00:04:36] [%clk 00:05:00]} 13. Nc4 {[%emt
00:03:30] [%clk 00:05:33]} e5 {[%emt 00:02:24] [%clk 00:02:46]} 14. Bg5 {[%emt
00:03:28] [%clk 00:02:15]} h6 {[%emt 00:00:32] [%clk 00:02:24]} 15. Bxf6 {[%emt
00:00:01] [%clk 00:02:24]} Bxf6 {[%emt 00:00:46] [%clk 00:01:47]} 16. h5 {[%clk
00:02:33]} Bg5 {[%emt 00:01:16] [%clk 00:00:41]} 17. a5 {[%emt 00:01:44] [%clk
00:01:00]} Ba6 {[%emt 00:00:07] [%clk 00:00:44]} 18. g3 {[%emt 00:00:31] [%clk
00:00:38]} Kg7 {[%emt 00:00:22] [%clk 00:00:32]} 19. hxg6 {[%emt 00:00:12] [%clk
00:00:36]} fxg6 {[%emt 00:00:02] [%clk 00:00:40]} 20. Kg2 {[%emt 00:00:10] [%clk
00:00:37]} Bxb5 {[%emt 00:00:34] [%clk 00:00:16]} 21. Nxb5 {[%emt 00:00:01]
[%clk 00:00:45]} Ra6 {[%emt 00:00:02] [%clk 00:00:24]} 22. Qe2 {[%emt 00:00:27]
[%clk 00:00:28]} Qd7 {[%emt 00:00:22] [%clk 00:00:13]} 23. Nbxd6 {[%emt
00:00:15] [%clk 00:00:23]} Rxd6 {[%emt 00:00:05] [%clk 00:00:18]} 24. Nxd6
{[%clk 00:00:31]} Qxd6 {[%emt 00:00:01] [%clk 00:00:27]} 25. a6 {[%emt
00:00:17]} Ra8 {[%clk 00:00:21]} 26. a7 {[%emt 00:00:16] [%clk 00:00:34]} Bd8
{[%emt 00:00:17] [%clk 00:00:14]} 27. Ra3 {[%emt 00:00:25] [%clk 00:00:19]} Qd7
{[%emt 00:00:07] [%clk 00:00:17]} 28. Rfa1 {[%emt 00:00:11] [%clk 00:00:18]} Bb6
{[%emt 00:00:02] [%clk 00:00:25]} 29. Qc4 {[%emt 00:00:14] [%clk 00:00:14]} Rxa7
{[%emt 00:00:10] [%clk 00:00:25]} 30. Rxa7 {[%emt 00:00:02] [%clk 00:00:21]}
Bxa7 {[%emt 00:00:02] [%clk 00:00:34]} 31. d6 {[%emt 00:00:13] [%clk 00:00:18]}
h5 {[%emt 00:00:30] [%clk 00:00:14]} 32. Qb3 {[%emt 00:00:15] [%clk 00:00:13]}
Bb8 {[%emt 00:00:10] [%clk 00:00:15]} 33. Ra8 {[%emt 00:00:09] [%clk 00:00:13]}
Qxd6 {[%emt 00:00:09] [%clk 00:00:16]} 34. Qa4 {[%emt 00:00:08] [%clk 00:00:15]}
Qc6 {[%emt 00:00:13] [%clk 00:00:13]} 35. Qxc6 {[%emt 00:00:10] [%clk 00:00:14]}
Nxc6 {[%emt 00:00:01] [%clk 00:00:22]} 36. f3 {[%emt 00:00:10] [%clk 00:00:15]}
Kf7 {[%emt 00:00:02] [%clk 00:00:30]} 37. Kf2 {[%emt 00:00:05] [%clk 00:00:19]}
Ke7 {[%emt 00:00:03] [%clk 00:00:37]} 38. Ke3 {[%emt 00:00:03] [%clk 00:00:27]}
Kd7 {[%emt 00:00:14] [%clk 00:00:34]} 39. Kd3 {[%emt 00:00:13] [%clk 00:00:23]}
Bd6 {[%emt 00:00:32] [%clk 00:00:12]} 40. Rg8 {[%emt 00:00:02] [%clk 00:00:31]}
Ne7 {[%emt 00:00:02] [%clk 00:00:20]} 41. Rh8 {[%emt 00:00:13] [%clk 00:00:28]}
Ke6 {[%emt 00:00:11] [%clk 00:00:19]} 42. Kc4 {[%emt 00:00:08] [%clk 00:00:30]}
Kf7 {[%emt 00:00:07] [%clk 00:00:22]} 43. Rd8 {[%emt 00:00:03] [%clk 00:00:36]}
Ke6 {[%emt 00:00:02] [%clk 00:00:31]} 44. Rh8 {[%clk 00:00:45]} Nc6 {[%emt
00:00:15] [%clk 00:00:25]} 45. Rh6 {[%emt 00:00:29] [%clk 00:00:26]} Ne7 {[%emt
00:00:15] [%clk 00:00:21]} 46. Rh8 {[%emt 00:00:01] [%clk 00:00:35]} 1/2-1/2

[Site "Europe Echecs"]

[Event "Championnat d'Europe Rapide"]
[Date "2024.12.08"]
[White "Tsolakidou, Stavroula"]
[Black "Tweedie, Steven"]
[WhiteElo "2451"]
[BlackElo "2172"]
[Round "9.47"]
[Result "1/2-1/2"]
[TimeControl "900+10"]

1. e4 {[%emt 00:00:02] [%clk 00:15:17]} e5 {[%emt 00:00:06] [%clk 00:15:14]} 2.
Nf3 {[%emt 00:00:03] [%clk 00:15:25]} Nc6 {[%emt 00:00:01] [%clk 00:15:23]} 3.
Bb5 {[%emt 00:00:04] [%clk 00:15:31]} a6 {[%emt 00:00:02] [%clk 00:15:31]} 4.
Ba4 {[%emt 00:00:02] [%clk 00:15:39]} Nf6 {[%emt 00:00:02] [%clk 00:15:39]} 5.
O-O {[%emt 00:00:03] [%clk 00:15:46]} b5 {[%emt 00:00:02] [%clk 00:15:47]} 6.
Bb3 {[%emt 00:00:03] [%clk 00:15:54]} Bc5 {[%emt 00:00:01] [%clk 00:15:55]} 7.
a4 {[%emt 00:00:19] [%clk 00:15:45]} Rb8 {[%emt 00:00:05] [%clk 00:15:59]} 8. c3
{[%emt 00:00:10] [%clk 00:15:46]} d6 {[%emt 00:00:02] [%clk 00:16:07]} 9. d4
{[%emt 00:00:09] [%clk 00:15:47]} Bb6 {[%emt 00:00:02] [%clk 00:16:15]} 10. a5
{[%emt 00:02:24] [%clk 00:13:33]} Ba7 {[%emt 00:03:09] [%clk 00:13:16]} 11. Be3
{[%emt 00:00:02] [%clk 00:13:41]} Bg4 {[%emt 00:00:12] [%clk 00:13:14]} 12. Nbd2
{[%emt 00:01:49] [%clk 00:12:02]} O-O {[%emt 00:01:58] [%clk 00:11:26]} 13. h3
{[%emt 00:00:05] [%clk 00:12:06]} Bh5 {[%emt 00:00:34] [%clk 00:11:02]} 14. Qc2
{[%emt 00:03:18] [%clk 00:08:59]} Bg6 {[%emt 00:02:55] [%clk 00:08:17]} 15. dxe5
{[%emt 00:00:28] [%clk 00:08:40]} Nxe4 {[%emt 00:03:21] [%clk 00:05:07]} 16.
Nxe4 {[%emt 00:01:29] [%clk 00:07:21]} Bxe3 {[%emt 00:00:12] [%clk 00:05:05]}
17. Rad1 {[%emt 00:01:18] [%clk 00:06:13]} Nxa5 {[%emt 00:00:47] [%clk
00:04:29]} 18. Bd5 {[%emt 00:02:17] [%clk 00:04:05]} Bb6 {[%emt 00:00:10] [%clk
00:04:29]} 19. exd6 {[%emt 00:00:10] [%clk 00:04:05]} cxd6 {[%emt 00:00:05]
[%clk 00:04:33]} 20. Nd4 {[%emt 00:00:56] [%clk 00:03:20]} Rc8 {[%emt 00:01:03]
[%clk 00:03:41]} 21. f4 {[%emt 00:00:20] [%clk 00:03:09]} Rc5 {[%emt 00:01:53]
[%clk 00:01:58]} 22. Ba2 {[%emt 00:00:11] [%clk 00:03:08]} Bxe4 {[%emt 00:00:17]
[%clk 00:01:51]} 23. Qxe4 {[%emt 00:00:03] [%clk 00:03:15]} Nc4 {[%emt 00:00:08]
[%clk 00:01:53]} 24. Bb1 {[%emt 00:01:38] [%clk 00:01:47]} f5 {[%emt 00:00:37]
[%clk 00:01:26]} 25. Qe6+ {[%emt 00:01:01] [%clk 00:00:55]} Kh8 {[%emt 00:00:03]
[%clk 00:01:33]} 1/2-1/2

[Site "Europe Echecs"]

[Event "Championnat d'Europe Rapide"]
[Date "2024.12.08"]
[White "Nakonechnyi, Oleksii"]
[Black "Diermair, Andreas"]
[WhiteElo "2052"]
[BlackElo "2433"]
[Round "9.48"]
[Result "1-0"]
[TimeControl "900+10"]

1. Nf3 {[%emt 00:00:02] [%clk 00:15:18]} d5 {[%emt 00:00:04] [%clk 00:15:16]} 2.
g3 {[%emt 00:00:01] [%clk 00:15:26]} Nc6 {[%emt 00:00:19] [%clk 00:15:08]} 3. d4
{[%emt 00:00:05] [%clk 00:15:31]} Bf5 {[%emt 00:00:02] [%clk 00:15:16]} 4. a3
{[%clk 00:15:40]} Qd7 {[%emt 00:00:18] [%clk 00:15:08]} 5. Bg2 {[%emt 00:01:02]
[%clk 00:14:48]} Bh3 {[%emt 00:00:08] [%clk 00:15:10]} 6. O-O {[%emt 00:00:02]
[%clk 00:14:57]} Bxg2 {[%emt 00:00:54] [%clk 00:14:25]} 7. Kxg2 {[%emt 00:00:02]
[%clk 00:15:04]} e6 {[%emt 00:00:08] [%clk 00:14:29]} 8. b3 {[%emt 00:00:47]} f5
{[%clk 00:14:25]} 9. c4 {[%emt 00:00:07] [%clk 00:14:43]} Nf6 {[%emt 00:00:02]
[%clk 00:14:33]} 10. Nc3 {[%emt 00:00:08] [%clk 00:14:45]} Ne4 {[%emt 00:00:07]
[%clk 00:14:36]} 11. Bb2 {[%emt 00:00:43] [%clk 00:14:12]} Be7 {[%emt 00:00:15]
[%clk 00:14:31]} 12. c5 {[%emt 00:00:46] [%clk 00:13:36]} Bf6 {[%emt 00:00:47]
[%clk 00:13:54]} 13. b4 {[%emt 00:00:14] [%clk 00:13:32]} a6 {[%emt 00:00:03]
[%clk 00:14:01]} 14. e3 {[%emt 00:00:54] [%clk 00:12:48]} g5 {[%emt 00:00:24]
[%clk 00:13:47]} 15. Nxe4 {[%emt 00:00:21] [%clk 00:12:37]} dxe4 {[%emt
00:02:15] [%clk 00:11:42]} 16. Nxg5 {[%emt 00:00:02] [%clk 00:12:45]} Ne7 {[%emt
00:01:08] [%clk 00:10:44]} 17. Nh3 {[%emt 00:01:16] [%clk 00:11:38]} h5 {[%emt
00:00:35] [%clk 00:10:19]} 18. Nf4 {[%emt 00:00:24] [%clk 00:11:25]} h4 {[%emt
00:00:03] [%clk 00:10:26]} 19. Nh5 {[%emt 00:00:44] [%clk 00:10:51]} Nd5 {[%emt
00:01:10] [%clk 00:09:26]} 20. Nxf6+ {[%emt 00:00:01] [%clk 00:11:00]} Nxf6
{[%emt 00:00:02] [%clk 00:09:34]} 21. d5 {[%emt 00:00:01] [%clk 00:11:09]} Rf8
{[%emt 00:00:29] [%clk 00:09:15]} 22. Bxf6 {[%emt 00:00:38] [%clk 00:10:40]}
Rxf6 {[%emt 00:00:02] [%clk 00:09:24]} 23. Qd4 {[%emt 00:00:07] [%clk 00:10:44]}
Rh6 {[%emt 00:03:07] [%clk 00:06:26]} 24. Rad1 {[%emt 00:02:36] [%clk 00:08:18]}
Rd8 {[%emt 00:03:19] [%clk 00:03:17]} 25. dxe6 {[%emt 00:01:13] [%clk 00:07:15]}
h3+ {[%emt 00:00:11] [%clk 00:03:15]} 26. Kg1 {[%emt 00:00:02] [%clk 00:07:23]}
Qxd4 {[%emt 00:00:12] [%clk 00:03:13]} 27. Rxd4 {[%emt 00:00:05] [%clk
00:07:28]} Rxd4 {[%emt 00:00:18] [%clk 00:03:05]} 28. exd4 {[%emt 00:01:20]
[%clk 00:06:19]} Rxe6 {[%emt 00:00:02] [%clk 00:03:13]} 29. Rd1 {[%emt 00:00:32]
[%clk 00:05:57]} Kd7 {[%emt 00:01:39] [%clk 00:01:44]} 30. Kf1 {[%emt 00:00:09]
[%clk 00:05:59]} f4 {[%emt 00:00:48] [%clk 00:01:05]} 31. d5 {[%emt 00:01:10]
[%clk 00:04:59]} Rf6 {[%emt 00:00:19] [%clk 00:00:56]} 32. Ke2 {[%emt 00:01:02]
[%clk 00:04:08]} fxg3 {[%emt 00:00:41] [%clk 00:00:24]} 33. hxg3 {[%emt
00:00:18] [%clk 00:03:59]} Rh6 {[%emt 00:00:14] [%clk 00:00:21]} 34. Ke3 {[%emt
00:00:10] [%clk 00:04:00]} Rf6 {[%emt 00:00:06] [%clk 00:00:25]} 35. Rh1 {[%emt
00:00:16] [%clk 00:03:54]} Rf3+ {[%clk 00:00:33]} 36. Kxe4 {[%emt 00:00:14]
[%clk 00:03:50]} Rxa3 {[%emt 00:00:02] [%clk 00:00:42]} 37. Rxh3 {[%emt
00:00:02] [%clk 00:03:58]} Rb3 {[%emt 00:00:03] [%clk 00:00:49]} 38. Rh7+ {[%emt
00:00:07] [%clk 00:04:00]} Kd8 {[%emt 00:00:02] [%clk 00:00:57]} 39. g4 {[%emt
00:00:08] [%clk 00:04:02]} Rxb4+ {[%emt 00:00:03] [%clk 00:01:04]} 40. Kf5
{[%clk 00:04:11]} Rd4 {[%emt 00:00:03] [%clk 00:01:11]} 41. g5 {[%emt 00:00:17]
[%clk 00:04:04]} Rxd5+ {[%emt 00:00:15] [%clk 00:01:06]} 42. Kg4 {[%emt
00:00:10] [%clk 00:04:04]} Ke8 {[%emt 00:00:13] [%clk 00:01:03]} 43. g6 {[%emt
00:00:08] [%clk 00:04:06]} Kf8 {[%emt 00:00:02] [%clk 00:01:10]} 44. Rxc7 {[%emt
00:00:06] [%clk 00:04:11]} a5 {[%emt 00:00:07]} 45. f4 {[%clk 00:04:16]} a4
{[%emt 00:00:04] [%clk 00:01:24]} 46. Rxb7 {[%emt 00:00:03] [%clk 00:04:24]}
Rxc5 {[%emt 00:00:01] [%clk 00:01:32]} 47. Ra7 {[%emt 00:00:02] [%clk 00:04:32]}
Rc4 {[%emt 00:00:03] [%clk 00:01:39]} 48. Kg5 {[%emt 00:00:02] [%clk 00:04:40]}
1-0

[Site "Europe Echecs"]